[Event "Titled Tuesday Blitz February 22 Late 2022"]
[White "Dubov, Daniil"]
[Black "Krishnan, Varun"]
[WhiteFideId "24126055"]
[BlackFideId "5054508"]
[WhiteElo "2791"]
[BlackElo "2528"]
[Result "1-0"]
[Round "01"]
[TimeControl "180+1"]
[Date "2022.02.22"]
[WhiteClock "0:00:17"]
[BlackClock "0:00:01"]

1. d4 {[%clk 0:03:00]}  d5 {[%clk 0:02:58]} 2. Nf3 {[%clk 0:03:01]}  Nf6 {[%clk 0:02:57]} 3. c4 {[%clk 0:03:01]}  e6 {[%clk 0:02:56]} 4. g3 {[%clk 0:03:01]}  Bb4+ {[%clk 0:02:54]} 5. Nbd2 {[%clk 0:03:00]}  O-O {[%clk 0:02:53]} 6. Bg2 {[%clk 0:02:59]}  b6 {[%clk 0:02:52]} 7. O-O {[%clk 0:03:00]}  Bb7 {[%clk 0:02:51]} 8. Ne5 {[%clk 0:03:00]}  Nbd7 {[%clk 0:02:42]} 9. Qa4 {[%clk 0:02:58]}  Bd6 {[%clk 0:02:34]} 10. Nxd7 {[%clk 0:02:56]}  Qxd7 {[%clk 0:02:35]} 11. Qxd7 {[%clk 0:02:56]}  Nxd7 {[%clk 0:02:36]} 12. cxd5 {[%clk 0:02:56]}  exd5 {[%clk 0:02:36]} 13. Nc4 {[%clk 0:02:55]}  Be7 {[%clk 0:02:30]} 14. Bf4 {[%clk 0:02:49]}  Rac8 {[%clk 0:02:24]} 15. Rac1 {[%clk 0:02:37]}  Nf6 {[%clk 0:02:02]} 16. Ne3 {[%clk 0:02:26]}  c5 {[%clk 0:01:56]} 17. Nf5 {[%clk 0:02:26]}  Rfe8 {[%clk 0:01:45]} 18. Nxe7+ {[%clk 0:02:03]}  Rxe7 {[%clk 0:01:46]} 19. dxc5 {[%clk 0:02:03]}  bxc5 {[%clk 0:01:39]} 20. Be3 {[%clk 0:02:00]}  d4 {[%clk 0:01:19]} 21. Bxb7 {[%clk 0:01:59]}  Rb8 {[%clk 0:01:17]} 22. Bxd4 {[%clk 0:01:23]}  cxd4 {[%clk 0:01:14]} 23. Bf3 {[%clk 0:01:12]}  Rxb2 {[%clk 0:01:09]} 24. Rc8+ {[%clk 0:01:11]}  Re8 {[%clk 0:01:09]} 25. Rfc1 {[%clk 0:01:11]}  Kf8 {[%clk 0:00:47]} 26. a4 {[%clk 0:01:00]}  Rb8 {[%clk 0:00:38]} 27. R8c7 {[%clk 0:00:50]}  a5 {[%clk 0:00:24]} 28. Ra7 {[%clk 0:00:48]}  Re7 {[%clk 0:00:22]} 29. Rxa5 {[%clk 0:00:44]}  Nd7 {[%clk 0:00:20]} 30. Rb5 {[%clk 0:00:37]}  Rd8 {[%clk 0:00:17]} 31. Rd5 {[%clk 0:00:36]}  d3 {[%clk 0:00:09]} 32. Rxd3 {[%clk 0:00:35]}  Rb8 {[%clk 0:00:07]} 33. Rcd1 {[%clk 0:00:31]}  Ne5 {[%clk 0:00:06]} 34. Rd8+ {[%clk 0:00:31]}  Re8 {[%clk 0:00:06]} 35. Rxe8+ {[%clk 0:00:30]}  Kxe8 {[%clk 0:00:07]} 36. Bd5 {[%clk 0:00:28]}  Rb4 {[%clk 0:00:05]} 37. a5 {[%clk 0:00:25]}  Ra4 {[%clk 0:00:05]} 38. f4 {[%clk 0:00:24]}  Nd7 {[%clk 0:00:02]} 39. Bc6 {[%clk 0:00:24]}  Rxa5 {[%clk 0:00:03]} 40. Rxd7 {[%clk 0:00:19]}  Kf8 {[%clk 0:00:03]} 41. Bd5 {[%clk 0:00:17]}  f6 {[%clk 0:00:02]} 42. Rf7+ {[%clk 0:00:17]}  Ke8 {[%clk 0:00:02]} 43. Rxg7 {[%clk 0:00:17]}  Rxd5 {[%clk 0:00:02]} 44. Rxh7 {[%clk 0:00:18]}  Kf8 {[%clk 0:00:02]} 45. Kf2 {[%clk 0:00:18]}  f5 {[%clk 0:00:02]} 46. Rh5 {[%clk 0:00:18]}  Kf7 {[%clk 0:00:02]} 47. e4 {[%clk 0:00:17]}  Rd2+ {[%clk 0:00:01]} 48. Ke3 {[%clk 0:00:17]}  Ra2 {[%clk 0:00:01]} 49. Rxf5+ {[%clk 0:00:17]}  Kg6 {[%clk 0:00:02]} 50. h4 {[%clk 0:00:16]}  Kh6 {[%clk 0:00:02]} 51. Kf3 {[%clk 0:00:16]}  Ra3+ {[%clk 0:00:01]} 52. Kg4 {[%clk 0:00:17]}  Rb3 {[%clk 0:00:01]} 53. h5 {[%clk 0:00:17]}  Rb7 {[%clk 0:00:01]} 54. Rf6+ {[%clk 0:00:17]} 1-0


[Site "https://www.chess.com"]

[Event "Titled Tuesday Blitz February 22 Late 2022"]
[White "Erdogdu, Mert"]
[Black "Bon, Michael"]
[WhiteFideId "6301495"]
[BlackFideId "620696"]
[WhiteElo "2485"]
[BlackElo "2388"]
[Result "1-0"]
[Round "01"]
[TimeControl "180+1"]
[Date "2022.02.23"]
[WhiteClock "0:00:43"]
[BlackClock "0:00:04"]

1. e4 {[%clk 0:03:00]}  c5 {[%clk 0:02:12]} 2. Nf3 {[%clk 0:03:00]}  d6 {[%clk 0:02:12]} 3. d4 {[%clk 0:03:01]}  cxd4 {[%clk 0:02:12]} 4. Nxd4 {[%clk 0:03:01]}  Nf6 {[%clk 0:02:12]} 5. Nc3 {[%clk 0:03:02]}  Nc6 {[%clk 0:02:13]} 6. Bg5 {[%clk 0:03:01]}  e6 {[%clk 0:02:13]} 7. Qd2 {[%clk 0:03:01]}  a6 {[%clk 0:02:12]} 8. O-O-O {[%clk 0:03:01]}  Bd7 {[%clk 0:02:12]} 9. f3 {[%clk 0:03:01]}  Qc7 {[%clk 0:02:02]} 10. Be3 {[%clk 0:02:58]}  b5 {[%clk 0:02:01]} 11. g4 {[%clk 0:02:58]}  Nxd4 {[%clk 0:01:44]} 12. Bxd4 {[%clk 0:02:57]}  b4 {[%clk 0:01:39]} 13. Ne2 {[%clk 0:02:57]}  a5 {[%clk 0:01:23]} 14. g5 {[%clk 0:02:55]}  Nh5 {[%clk 0:01:23]} 15. Ng3 {[%clk 0:02:54]}  Nxg3 {[%clk 0:01:21]} 16. hxg3 {[%clk 0:02:55]}  e5 {[%clk 0:00:55]} 17. Be3 {[%clk 0:02:50]}  Be7 {[%clk 0:00:55]} 18. Kb1 {[%clk 0:02:49]}  Qb7 {[%clk 0:00:47]} 19. Bc4 {[%clk 0:02:44]}  Rc8 {[%clk 0:00:44]} 20. Bd5 {[%clk 0:02:38]}  Bc6 {[%clk 0:00:44]} 21. Bxc6+ {[%clk 0:02:30]}  Qxc6 {[%clk 0:00:44]} 22. Rh2 {[%clk 0:02:25]}  Kf8 {[%clk 0:00:35]} 23. Rdh1 {[%clk 0:02:21]}  Kg8 {[%clk 0:00:36]} 24. Qd3 {[%clk 0:02:12]}  g6 {[%clk 0:00:33]} 25. f4 {[%clk 0:01:52]}  Qc4 {[%clk 0:00:32]} 26. b3 {[%clk 0:01:47]}  Qxd3 {[%clk 0:00:32]} 27. cxd3 {[%clk 0:01:48]}  Kg7 {[%clk 0:00:32]} 28. f5 {[%clk 0:01:45]}  f6 {[%clk 0:00:26]} 29. gxf6+ {[%clk 0:01:44]}  Bxf6 {[%clk 0:00:27]} 30. g4 {[%clk 0:01:40]}  g5 {[%clk 0:00:26]} 31. Rc2 {[%clk 0:01:18]}  Rxc2 {[%clk 0:00:25]} 32. Kxc2 {[%clk 0:01:19]}  Rc8+ {[%clk 0:00:25]} 33. Kd2 {[%clk 0:01:19]}  Bd8 {[%clk 0:00:23]} 34. d4 {[%clk 0:01:15]}  Bb6 {[%clk 0:00:20]} 35. Bxg5 {[%clk 0:01:12]}  Bxd4 {[%clk 0:00:18]} 36. Bh6+ {[%clk 0:01:12]}  Kg8 {[%clk 0:00:17]} 37. Bg5 {[%clk 0:01:08]}  Rc3 {[%clk 0:00:16]} 38. Be7 {[%clk 0:01:00]}  Rg3 {[%clk 0:00:15]} 39. g5 {[%clk 0:01:00]}  Bc5 {[%clk 0:00:13]} 40. Rh6 {[%clk 0:00:51]}  Be3+ {[%clk 0:00:12]} 41. Ke2 {[%clk 0:00:50]}  Bxg5 {[%clk 0:00:13]} 42. Bxg5 {[%clk 0:00:51]}  Rxg5 {[%clk 0:00:13]} 43. Rxd6 {[%clk 0:00:51]}  Rg2+ {[%clk 0:00:13]} 44. Kf3 {[%clk 0:00:51]}  Rxa2 {[%clk 0:00:14]} 45. Rd5 {[%clk 0:00:51]}  Ra3 {[%clk 0:00:14]} 46. Rxe5 {[%clk 0:00:51]}  Rxb3+ {[%clk 0:00:15]} 47. Kf4 {[%clk 0:00:52]}  a4 {[%clk 0:00:15]} 48. Ra5 {[%clk 0:00:52]}  a3 {[%clk 0:00:15]} 49. e5 {[%clk 0:00:52]}  Rb2 {[%clk 0:00:14]} 50. e6 {[%clk 0:00:51]}  a2 {[%clk 0:00:14]} 51. f6 {[%clk 0:00:50]}  Rf2+ {[%clk 0:00:10]} 52. Ke5 {[%clk 0:00:47]}  Re2+ {[%clk 0:00:10]} 53. Kd5 {[%clk 0:00:48]}  h5 {[%clk 0:00:09]} 54. Ra8+ {[%clk 0:00:46]}  Kh7 {[%clk 0:00:10]} 55. f7 {[%clk 0:00:44]}  Rf2 {[%clk 0:00:07]} 56. Rxa2 {[%clk 0:00:44]}  Rxa2 {[%clk 0:00:04]} 57. f8=Q {[%clk 0:00:43]} 1-0


[Site "https://www.chess.com"]

[Event "Titled Tuesday Blitz February 22 Late 2022"]
[White "Ezat, Mohamed"]
[Black "Clawitter, Craig"]
[WhiteFideId "10600906"]
[BlackFideId "2023105"]
[WhiteElo "2386"]
[BlackElo "2200"]
[Result "1-0"]
[Round "01"]
[TimeControl "180+1"]
[Date "2022.02.23"]
[WhiteClock "0:01:09"]
[BlackClock "0:00:24"]

1. d4 {[%clk 0:03:00]}  e6 {[%clk 0:03:00]} 2. c4 {[%clk 0:02:59]}  Nf6 {[%clk 0:03:00]} 3. Nc3 {[%clk 0:02:57]}  d5 {[%clk 0:03:01]} 4. cxd5 {[%clk 0:02:56]}  exd5 {[%clk 0:03:02]} 5. Bg5 {[%clk 0:02:54]}  c6 {[%clk 0:03:02]} 6. Qc2 {[%clk 0:02:54]}  Be7 {[%clk 0:03:02]} 7. e3 {[%clk 0:02:54]}  O-O {[%clk 0:03:00]} 8. Bd3 {[%clk 0:02:47]}  Nbd7 {[%clk 0:02:59]} 9. Nge2 {[%clk 0:02:46]}  Re8 {[%clk 0:02:56]} 10. O-O {[%clk 0:02:45]}  Nf8 {[%clk 0:02:53]} 11. Rab1 {[%clk 0:02:45]}  a5 {[%clk 0:02:51]} 12. a3 {[%clk 0:02:44]}  g6 {[%clk 0:02:47]} 13. b4 {[%clk 0:02:42]}  axb4 {[%clk 0:02:43]} 14. axb4 {[%clk 0:02:41]}  Ne6 {[%clk 0:02:43]} 15. Bh4 {[%clk 0:02:42]}  Ng7 {[%clk 0:02:42]} 16. b5 {[%clk 0:02:41]}  Bf5 {[%clk 0:02:35]} 17. bxc6 {[%clk 0:02:35]}  bxc6 {[%clk 0:02:36]} 18. Bxf5 {[%clk 0:02:25]}  Nxf5 {[%clk 0:02:33]} 19. Bxf6 {[%clk 0:02:26]}  Bxf6 {[%clk 0:02:33]} 20. Na4 {[%clk 0:02:26]}  Qa5 {[%clk 0:02:09]} 21. Nb6 {[%clk 0:02:25]}  Ra6 {[%clk 0:02:01]} 22. Qxc6 {[%clk 0:02:23]}  Re6 {[%clk 0:01:56]} 23. Qc8+ {[%clk 0:02:19]}  Kg7 {[%clk 0:01:55]} 24. Nd7 {[%clk 0:02:03]}  Ra8 {[%clk 0:01:10]} 25. Rb8 {[%clk 0:01:42]}  Rxb8 {[%clk 0:01:10]} 26. Qxb8 {[%clk 0:01:41]}  Be7 {[%clk 0:00:46]} 27. Nf4 {[%clk 0:01:38]}  Bd6 {[%clk 0:00:46]} 28. Nxe6+ {[%clk 0:01:37]}  fxe6 {[%clk 0:00:47]} 29. Qb7 {[%clk 0:01:36]}  Kh6 {[%clk 0:00:39]} 30. Nf6 {[%clk 0:01:35]}  Kg5 {[%clk 0:00:37]} 31. Nxh7+ {[%clk 0:01:34]}  Kg4 {[%clk 0:00:37]} 32. h3+ {[%clk 0:01:30]}  Kh4 {[%clk 0:00:36]} 33. Qf7 {[%clk 0:01:15]}  Bb8 {[%clk 0:00:29]} 34. Qxg6 {[%clk 0:01:11]}  Qc7 {[%clk 0:00:24]} 35. Qg4# {[%clk 0:01:09]} 1-0


[Site "https://www.chess.com"]

[Event "Titled Tuesday Blitz February 22 Late 2022"]
[White "Fernandez Siles, Luis"]
[Black "Badmatsyrenov, Oleg"]
[WhiteFideId "2209420"]
[BlackFideId "24115762"]
[WhiteElo "2212"]
[BlackElo "2403"]
[Result "0-1"]
[Round "01"]
[TimeControl "180+1"]
[Date "2022.02.23"]
[WhiteClock "0:00:08"]
[BlackClock "0:00:17"]

1. e4 {[%clk 0:03:00]}  c5 {[%clk 0:02:57]} 2. Nf3 {[%clk 0:02:59]}  e6 {[%clk 0:02:58]} 3. c3 {[%clk 0:02:59]}  d5 {[%clk 0:02:57]} 4. exd5 {[%clk 0:03:00]}  exd5 {[%clk 0:02:57]} 5. d4 {[%clk 0:03:00]}  a6 {[%clk 0:02:58]} 6. Bd3 {[%clk 0:02:48]}  c4 {[%clk 0:02:57]} 7. Bc2 {[%clk 0:02:47]}  Bd6 {[%clk 0:02:58]} 8. O-O {[%clk 0:02:43]}  Nc6 {[%clk 0:02:58]} 9. Re1+ {[%clk 0:02:42]}  Nge7 {[%clk 0:02:57]} 10. b3 {[%clk 0:02:42]}  cxb3 {[%clk 0:02:56]} 11. axb3 {[%clk 0:02:42]}  O-O {[%clk 0:02:57]} 12. Nbd2 {[%clk 0:02:38]}  Ng6 {[%clk 0:02:53]} 13. Nf1 {[%clk 0:02:37]}  Bg4 {[%clk 0:02:50]} 14. Ne3 {[%clk 0:02:33]}  Be6 {[%clk 0:02:45]} 15. c4 {[%clk 0:02:29]}  Nb4 {[%clk 0:02:44]} 16. Bb1 {[%clk 0:02:07]}  Rc8 {[%clk 0:02:42]} 17. Bd2 {[%clk 0:02:04]}  Be7 {[%clk 0:02:30]} 18. c5 {[%clk 0:01:53]}  Nc6 {[%clk 0:02:27]} 19. b4 {[%clk 0:01:49]}  Bf6 {[%clk 0:02:21]} 20. Bc3 {[%clk 0:01:48]}  Re8 {[%clk 0:02:13]} 21. Ba2 {[%clk 0:01:41]}  Na7 {[%clk 0:02:07]} 22. Nxd5 {[%clk 0:01:37]}  Nb5 {[%clk 0:02:00]} 23. Bb2 {[%clk 0:01:16]}  Bxd5 {[%clk 0:01:59]} 24. Rxe8+ {[%clk 0:01:15]}  Qxe8 {[%clk 0:01:59]} 25. Bxd5 {[%clk 0:01:16]}  Qd7 {[%clk 0:01:56]} 26. Qb3 {[%clk 0:01:04]}  Nf4 {[%clk 0:01:54]} 27. Bc4 {[%clk 0:00:59]}  Qg4 {[%clk 0:01:39]} 28. g3 {[%clk 0:00:49]}  h5 {[%clk 0:00:59]} 29. Qe3 {[%clk 0:00:47]}  Nh3+ {[%clk 0:00:53]} 30. Kg2 {[%clk 0:00:40]}  Nd6 {[%clk 0:00:38]} 31. Be2 {[%clk 0:00:25]}  Nf5 {[%clk 0:00:37]} 32. Qd2 {[%clk 0:00:19]}  Re8 {[%clk 0:00:25]} 33. Re1 {[%clk 0:00:18]}  Rxe2 {[%clk 0:00:17]} 34. Rxe2 {[%clk 0:00:16]}  h4 {[%clk 0:00:17]} 35. Re8+ {[%clk 0:00:15]}  Kh7 {[%clk 0:00:17]} 36. Qd3 {[%clk 0:00:14]}  Nf4+ {[%clk 0:00:17]} 37. Kf1 {[%clk 0:00:10]}  Nxd3 {[%clk 0:00:17]} 38. Nxh4 {[%clk 0:00:08]}  Nxh4 {[%clk 0:00:17]} 0-1


[Site "https://www.chess.com"]

[Event "Titled Tuesday Blitz February 22 Late 2022"]
[White "Fiorito, Fabian"]
[Black "Lenderman, Aleksandr"]
[WhiteFideId "100200"]
[BlackFideId "2021285"]
[WhiteElo "2395"]
[BlackElo "2651"]
[Result "0-1"]
[Round "01"]
[TimeControl "180+1"]
[Date "2022.02.23"]
[WhiteClock "0:01:33"]
[BlackClock "0:00:15"]

1. d4 {[%clk 0:03:00]}  d5 {[%clk 0:02:52]} 2. Nc3 {[%clk 0:03:00]}  Bf5 {[%clk 0:02:46]} 3. Bf4 {[%clk 0:02:59]}  Nf6 {[%clk 0:02:44]} 4. f3 {[%clk 0:02:59]}  e6 {[%clk 0:02:43]} 5. g4 {[%clk 0:02:59]}  Bg6 {[%clk 0:02:42]} 6. Qd2 {[%clk 0:03:00]}  Bd6 {[%clk 0:02:34]} 7. h4 {[%clk 0:02:58]}  h6 {[%clk 0:02:32]} 8. Nh3 {[%clk 0:02:57]}  c5 {[%clk 0:02:31]} 9. e3 {[%clk 0:02:54]}  Nc6 {[%clk 0:02:29]} 10. Bxd6 {[%clk 0:02:32]}  Qxd6 {[%clk 0:02:28]} 11. Nf4 {[%clk 0:02:33]}  cxd4 {[%clk 0:02:21]} 12. exd4 {[%clk 0:02:33]}  Bxc2 {[%clk 0:02:20]} 13. Nb5 {[%clk 0:02:30]}  Qb8 {[%clk 0:02:20]} 14. Nxe6 {[%clk 0:02:24]}  Qg3+ {[%clk 0:02:11]} 15. Ke2 {[%clk 0:02:10]}  fxe6 {[%clk 0:02:11]} 16. Qxc2 {[%clk 0:02:10]}  a6 {[%clk 0:02:10]} 17. Qg6+ {[%clk 0:02:09]}  Kf8 {[%clk 0:02:10]} 18. Rh3 {[%clk 0:01:58]}  Qf4 {[%clk 0:02:04]} 19. g5 {[%clk 0:01:57]}  axb5 {[%clk 0:01:32]} 20. gxf6 {[%clk 0:01:57]}  Qxf6 {[%clk 0:01:14]} 21. Qxf6+ {[%clk 0:01:53]}  gxf6 {[%clk 0:01:14]} 22. Ke3 {[%clk 0:01:54]}  Rg8 {[%clk 0:01:13]} 23. Bxb5 {[%clk 0:01:54]}  Rg2 {[%clk 0:01:08]} 24. a4 {[%clk 0:01:42]}  Nb4 {[%clk 0:01:02]} 25. Rc1 {[%clk 0:01:40]}  Nc2+ {[%clk 0:01:02]} 26. Kd3 {[%clk 0:01:39]}  Rc8 {[%clk 0:01:02]} 27. Rhh1 {[%clk 0:01:29]}  Nb4+ {[%clk 0:00:29]} 28. Ke3 {[%clk 0:01:29]}  Rxc1 {[%clk 0:00:16]} 29. Rxc1 {[%clk 0:01:29]}  Rxb2 {[%clk 0:00:15]} 30. Rc8+ {[%clk 0:01:29]}  Ke7 {[%clk 0:00:15]} 31. Rc7+ {[%clk 0:01:30]}  Kd8 {[%clk 0:00:14]} 32. Rxb7 {[%clk 0:01:27]}  Nc2+ {[%clk 0:00:14]} 33. Kd3 {[%clk 0:01:25]}  Ne1+ {[%clk 0:00:15]} 34. Kc3 {[%clk 0:01:24]}  Rf2 {[%clk 0:00:12]} 35. Rd7+ {[%clk 0:01:24]}  Kc8 {[%clk 0:00:12]} 36. Rh7 {[%clk 0:01:25]}  Rxf3+ {[%clk 0:00:12]} 37. Kd2 {[%clk 0:01:24]}  Ng2 {[%clk 0:00:10]} 38. Rxh6 {[%clk 0:01:24]}  Rf4 {[%clk 0:00:06]} 39. Kc3 {[%clk 0:01:23]}  Nxh4 {[%clk 0:00:06]} 40. Bd7+ {[%clk 0:01:22]}  Kxd7 {[%clk 0:00:06]} 41. Kb4 {[%clk 0:01:19]}  Nf5 {[%clk 0:00:06]} 42. Kc5 {[%clk 0:01:20]}  Nxh6 {[%clk 0:00:06]} 43. a5 {[%clk 0:01:20]}  Kc7 {[%clk 0:00:06]} 44. a6 {[%clk 0:01:21]}  Kb8 {[%clk 0:00:06]} 45. Kd6 {[%clk 0:01:22]}  Ka8 {[%clk 0:00:06]} 46. Kxe6 {[%clk 0:01:22]}  Rxd4 {[%clk 0:00:07]} 47. Kxf6 {[%clk 0:01:22]}  Ra4 {[%clk 0:00:07]} 48. Ke5 {[%clk 0:01:23]}  Rxa6 {[%clk 0:00:08]} 49. Kxd5 {[%clk 0:01:24]}  Nf7 {[%clk 0:00:09]} 50. Ke4 {[%clk 0:01:25]}  Rd6 {[%clk 0:00:08]} 51. Kf5 {[%clk 0:01:25]}  Kb7 {[%clk 0:00:09]} 52. Ke4 {[%clk 0:01:26]}  Kc7 {[%clk 0:00:10]} 53. Kf5 {[%clk 0:01:27]}  Kd7 {[%clk 0:00:11]} 54. Ke4 {[%clk 0:01:28]}  Ke7 {[%clk 0:00:12]} 55. Kf5 {[%clk 0:01:28]}  Re6 {[%clk 0:00:13]} 56. Kg4 {[%clk 0:01:29]}  Kf6 {[%clk 0:00:13]} 57. Kf4 {[%clk 0:01:29]}  Re5 {[%clk 0:00:14]} 58. Kg4 {[%clk 0:01:30]}  Rf5 {[%clk 0:00:14]} 59. Kg3 {[%clk 0:01:31]}  Kg5 {[%clk 0:00:14]} 60. Kh3 {[%clk 0:01:31]}  Ne5 {[%clk 0:00:15]} 61. Kg2 {[%clk 0:01:32]}  Kg4 {[%clk 0:00:15]} 62. Kg1 {[%clk 0:01:33]}  Kg3 {[%clk 0:00:14]} 63. Kh1 {[%clk 0:01:33]}  Rf1# {[%clk 0:00:15]} 0-1


[Site "https://www.chess.com"]

[Event "Titled Tuesday Blitz February 22 Late 2022"]
[White "Gaisinsky, Adam"]
[Black "Shuvalova, Polina"]
[WhiteFideId "2620561"]
[BlackFideId "24171760"]
[WhiteElo "1965"]
[BlackElo "2355"]
[Result "0-1"]
[Round "01"]
[TimeControl "180+1"]
[Date "2022.02.23"]
[WhiteClock "0:00:02"]
[BlackClock "0:01:33"]

1. d4 {[%clk 0:02:59]}  Nf6 {[%clk 0:02:58]} 2. Nf3 {[%clk 0:02:58]}  e6 {[%clk 0:02:59]} 3. Bf4 {[%clk 0:02:59]}  d5 {[%clk 0:02:59]} 4. e3 {[%clk 0:02:59]}  c5 {[%clk 0:02:58]} 5. c3 {[%clk 0:02:59]}  Bd6 {[%clk 0:02:58]} 6. Bg3 {[%clk 0:02:56]}  O-O {[%clk 0:02:57]} 7. Nbd2 {[%clk 0:02:56]}  Nc6 {[%clk 0:02:56]} 8. Bd3 {[%clk 0:02:56]}  b6 {[%clk 0:02:53]} 9. e4 {[%clk 0:02:56]}  dxe4 {[%clk 0:02:49]} 10. Nxe4 {[%clk 0:02:56]}  Nxe4 {[%clk 0:02:50]} 11. Bxe4 {[%clk 0:02:57]}  Bb7 {[%clk 0:02:49]} 12. dxc5 {[%clk 0:02:58]}  Bxc5 {[%clk 0:02:43]} 13. Qa4 {[%clk 0:02:57]}  Rc8 {[%clk 0:02:39]} 14. Rd1 {[%clk 0:02:57]}  Qe7 {[%clk 0:02:39]} 15. O-O {[%clk 0:02:55]}  f5 {[%clk 0:02:26]} 16. Bc2 {[%clk 0:02:35]}  e5 {[%clk 0:02:25]} 17. Bh4 {[%clk 0:02:00]}  Qe8 {[%clk 0:02:19]} 18. Bb3+ {[%clk 0:01:07]}  Kh8 {[%clk 0:02:18]} 19. Rfe1 {[%clk 0:00:48]}  e4 {[%clk 0:02:16]} 20. Bd5 {[%clk 0:00:35]}  Qh5 {[%clk 0:02:11]} 21. b4 {[%clk 0:00:27]}  Bd6 {[%clk 0:01:50]} 22. Bg3 {[%clk 0:00:12]}  Bxg3 {[%clk 0:01:47]} 23. hxg3 {[%clk 0:00:12]}  exf3 {[%clk 0:01:44]} 24. Bxf3 {[%clk 0:00:13]}  Qf7 {[%clk 0:01:40]} 25. Rd3 {[%clk 0:00:05]}  Rfe8 {[%clk 0:01:33]} 26. Rxe8+ {[%clk 0:00:02]}  Rxe8 {[%clk 0:01:33]} 27. Bxc6 {[%clk 0:00:02]}  Re1+ {[%clk 0:01:33]} 28. Kh2 {[%clk 0:00:02]}  Qh5# {[%clk 0:01:33]} 0-1


[Site "https://www.chess.com"]

[Event "Titled Tuesday Blitz February 22 Late 2022"]
[White "Glavina, Pablo"]
[Black "Pichot, Alan"]
[WhiteFideId "100234"]
[BlackFideId "110973"]
[WhiteElo "2369"]
[BlackElo "2543"]
[Result "0-1"]
[Round "01"]
[TimeControl "180+1"]
[Date "2022.02.23"]
[WhiteClock "0:00:29"]
[BlackClock "0:00:09"]

1. e4 {[%clk 0:02:57]}  c5 {[%clk 0:02:51]} 2. Nf3 {[%clk 0:02:56]}  e6 {[%clk 0:02:47]} 3. d3 {[%clk 0:02:55]}  Nc6 {[%clk 0:02:46]} 4. g3 {[%clk 0:02:52]}  Nf6 {[%clk 0:02:45]} 5. Bg2 {[%clk 0:02:52]}  d5 {[%clk 0:02:45]} 6. Qe2 {[%clk 0:02:52]}  Be7 {[%clk 0:02:45]} 7. O-O {[%clk 0:02:52]}  O-O {[%clk 0:02:45]} 8. e5 {[%clk 0:02:52]}  Nd7 {[%clk 0:02:45]} 9. c4 {[%clk 0:02:52]}  b5 {[%clk 0:02:42]} 10. cxb5 {[%clk 0:02:50]}  Na5 {[%clk 0:02:41]} 11. Qc2 {[%clk 0:02:49]}  a6 {[%clk 0:02:33]} 12. a4 {[%clk 0:02:49]}  Qb6 {[%clk 0:02:21]} 13. Na3 {[%clk 0:02:48]}  Bb7 {[%clk 0:02:17]} 14. Be3 {[%clk 0:02:47]}  Qd8 {[%clk 0:01:42]} 15. h4 {[%clk 0:02:37]}  h6 {[%clk 0:01:41]} 16. h5 {[%clk 0:02:37]}  Rc8 {[%clk 0:01:41]} 17. Bf4 {[%clk 0:02:36]}  Qb6 {[%clk 0:01:40]} 18. Rac1 {[%clk 0:02:28]}  c4 {[%clk 0:01:27]} 19. Be3 {[%clk 0:02:20]}  Bc5 {[%clk 0:01:21]} 20. Bxc5 {[%clk 0:02:15]}  Nxc5 {[%clk 0:01:20]} 21. dxc4 {[%clk 0:02:13]}  Ncb3 {[%clk 0:01:20]} 22. Rcd1 {[%clk 0:02:11]}  dxc4 {[%clk 0:01:20]} 23. Rd6 {[%clk 0:02:00]}  Qc5 {[%clk 0:01:13]} 24. bxa6 {[%clk 0:01:57]}  Bd5 {[%clk 0:01:14]} 25. Rd1 {[%clk 0:01:51]}  Nc6 {[%clk 0:01:11]} 26. Qc3 {[%clk 0:01:49]}  Ra8 {[%clk 0:01:02]} 27. Nb5 {[%clk 0:01:46]}  Rfc8 {[%clk 0:00:55]} 28. a7 {[%clk 0:01:35]}  Nxa7 {[%clk 0:00:52]} 29. Nbd4 {[%clk 0:01:31]}  Nxd4 {[%clk 0:00:34]} 30. Qxd4 {[%clk 0:01:32]}  Rab8 {[%clk 0:00:30]} 31. Qf4 {[%clk 0:01:13]}  Qc7 {[%clk 0:00:21]} 32. Nh4 {[%clk 0:01:00]}  Bxg2 {[%clk 0:00:19]} 33. Kxg2 {[%clk 0:01:01]}  Rf8 {[%clk 0:00:11]} 34. Nf3 {[%clk 0:00:54]}  Rxb2 {[%clk 0:00:11]} 35. Rc1 {[%clk 0:00:52]}  Nc8 {[%clk 0:00:09]} 36. Rxc4 {[%clk 0:00:50]}  Qa7 {[%clk 0:00:09]} 37. Rdc6 {[%clk 0:00:43]}  Qxf2+ {[%clk 0:00:08]} 38. Kh3 {[%clk 0:00:43]}  Qg2+ {[%clk 0:00:08]} 39. Kg4 {[%clk 0:00:43]}  Ne7 {[%clk 0:00:09]} 40. Rc7 {[%clk 0:00:28]}  Nd5 {[%clk 0:00:10]} 41. Rc8 {[%clk 0:00:29]}  Nxf4 {[%clk 0:00:09]} 42. Rxf8+ {[%clk 0:00:29]}  Kxf8 {[%clk 0:00:09]} 0-1


[Site "https://www.chess.com"]